fUSD/lending_fUSD_20250724
["ID","MTS","AMOUNT","RATE_DAILY","PERIOD"]
[374509271,1753331441704,-168.0,0.000249,2]
[374509273,1753331441713,-201.23624,0.000249,2]
[374509275,1753331441723,-187.5,0.00024976,2]
[374509277,1753331441732,-9999.99,0.0002498,2]
[374509279,1753331441742,-152.52,0.00025,2]
[374509281,1753331441751,-5000.0,0.00025,2]
[374509283,1753331441762,-183.0,0.00025,7]
[374509285,1753331441772,-150.0,0.00025,2]
[374509287,1753331441781,-400.0,0.00025,7]
[374509289,1753331441791,-504.0,0.00025003,4]
[374509291,1753331441800,-400.0,0.0002501,7]
[374509293,1753331441810,-150.0,0.00025011,2]
[374509295,1753331441820,-157.76366135,0.00025029,2]
[374509297,1753331441829,-454.27342287,0.00025038,12]
[374509299,1753331441839,-152.0,0.00025089,9]
[374509301,1753331441848,-186.26,0.00025091,2]
[374509303,1753331441858,-500.0,0.000251,2]
[374509305,1753331441867,-503.43571083,0.000251,2]
[374509307,1753331441878,-157.76366135,0.00025217,2]
[374509309,1753331441887,-150.0,0.00025239,2]
[374509311,1753331441897,-150.0,0.00025253,2]
[374509314,1753331441907,-150.0,0.00025253,2]
[374509315,1753331441917,-454.27342287,0.00025279,12]
[374509318,1753331441926,-150.0,0.00025349,2]
[374509320,1753331441936,-251.12461638,0.00025359,2]
[374509321,1753331441949,-157.76366135,0.00025404,2]
[374509323,1753331441959,-2179.8864505,0.00025413,2]
[374509325,1753331441968,-168.0,0.00025426,2]
[374509327,1753331441978,-152.0,0.00025431,10]
[374509329,1753331441988,-168.0,0.00025433,2]
[374509331,1753331441998,-168.0,0.00025436,2]
[374509333,1753331442007,-1000.0,0.00025456,2]
[374509335,1753331442018,-168.0,0.00025497,2]
[374509337,1753331442028,-454.27342287,0.00025521,13]
[374509339,1753331442037,-150.0,0.00025536,2]
[374509342,1753331442046,-540.0,0.0002555,2]
[374509343,1753331442056,-157.76366135,0.00025591,2]
[374509345,1753331442065,-150.0,0.00025592,2]
[374509347,1753331442076,-500.0,0.00025648,2]
[374509350,1753331442086,-488.34,0.00025676,2]
[374509352,1753331442096,-168.0,0.00025681,2]
[374509354,1753331442106,-1000.0,0.00025699,2]
[374509356,1753331442115,-248.71531821,0.000257,2]
[374509358,1753331442125,-454.27342287,0.00025762,13]
[374509360,1753331442134,-152.0,0.00025773,11]
[374509362,1753331442143,-157.76366135,0.00025778,2]
[374509364,1753331442153,-150.0,0.00025815,2]
[374509365,1753331442162,-1000.0,0.00025829,2]
[374509367,1753331442171,-150.0,0.00025841,2]
[374509370,1753331442181,-150.0,0.00025855,2]
[374509372,1753331442191,-150.0,0.00025893,2]
[374509374,1753331442201,-504.0,0.000259,6]
[374509376,1753331442211,-150.0,0.00025911,2]
[374509378,1753331442221,-2179.8864505,0.00025947,2]
[374509380,1753331442231,-157.76366135,0.00025965,2]
[374509382,1753331442240,-150.0,0.00025968,2]
[374509384,1753331442250,-400.0,0.00026,7]
[374509386,1753331442260,-454.27342287,0.00026003,14]
[374509388,1753331442270,-231.58,0.00026038,2]
[374509390,1753331442280,-186.26,0.00026041,2]
[374509392,1753331442289,-286.86,0.00026078,2]
[374509394,1753331442299,-152.0,0.00026115,12]
[374509396,1753331442308,-300.0,0.00026131,2]
[374509398,1753331442318,-157.76366135,0.00026152,2]
[374509400,1753331442328,-897.0,0.00026182,2]
[374509402,1753331442338,-168.0,0.00026182,2]
[374509404,1753331442347,-150.0,0.00026232,2]
[374509406,1753331442357,-454.27342287,0.00026245,14]
[374509408,1753331442366,-296.74667551,0.00026268,2]
[374509410,1753331442377,-2000.0,0.000263,2]
[374509412,1753331442387,-168.0,0.00026304,2]
[374509414,1753331442396,-157.76366135,0.00026339,2]
[374509416,1753331442406,-155.31517092,0.000264,2]
[374509418,1753331442415,-150.0,0.00026402,2]
[374509420,1753331442425,-150.0,0.00026432,2]
[374509423,1753331442435,-152.0,0.00026458,13]
[374509425,1753331442444,-1657.558157,0.00026459,16]
[374509427,1753331442453,-150.0,0.00026468,2]
[374509428,1753331442463,-150.0,0.00026469,2]
[374509431,1753331442473,-168.0,0.00026476,2]
[374509433,1753331442483,-2179.8864505,0.0002648,2]
[374509435,1753331442492,-150.48871843,0.00026482,4]
[374509437,1753331442501,-150.0,0.00026482,4]
[374509439,1753331442510,-150.0,0.00026482,4]
[374509441,1753331442520,-150.0,0.00026482,4]
[374509443,1753331442529,-150.0,0.00026482,4]
[374509445,1753331442539,-153.27865121,0.00026482,4]
[374509447,1753331442548,-150.0,0.00026482,4]
[374509449,1753331442557,-150.0,0.00026482,4]
[374509452,1753331442567,-150.0,0.00026482,4]
[374509454,1753331442577,-150.0,0.00026482,4]
[374509456,1753331442586,-150.0,0.00026482,4]
[374509458,1753331442595,-150.0,0.00026482,4]
[374509461,1753331442604,-150.0,0.00026482,4]
[374509463,1753331442614,-150.0,0.00026482,4]
[374509465,1753331442623,-151.04203856,0.00026482,4]
[374509467,1753331442632,-454.27342287,0.00026486,15]
[374509469,1753331442641,-20000.0,0.000265,2]
[374509470,1753331442651,-2002.17481236,0.000265,2]
[374509472,1753331442661,-200.0,0.000265,9]
[374509475,1753331442670,-157.76366135,0.00026526,2]
[374509477,1753331442680,-150.0,0.00026564,4]
[374509479,1753331442690,-1000.0,0.00026564,2]
[374509480,1753331442699,-150.0,0.00026588,2]
[374509483,1753331442710,-150.0,0.00026591,4]
[374509484,1753331442719,-150.0,0.00026592,2]
[374509489,1753331442729,-10000.0,0.000266,2]
[374509491,1753331442739,-500.0,0.000266,9]
[374509494,1753331442750,-3311.17933416,0.000266,2]
[374509496,1753331442759,-23687.9364155,0.00026623,3]
[374509498,1753331442769,-563.0,0.00026633,2]
[374509500,1753331442779,-1269.0,0.00026633,2]
[374509502,1753331442789,-960.0,0.00026633,2]
[374509504,1753331442799,-1106.222,0.00026633,2]
[374509506,1753331442808,-592.651,0.00026633,2]
[374509508,1753331442818,-1167.0,0.00026633,2]
[374509510,1753331442828,-890.0,0.00026633,2]
[374509512,1753331442837,-6055.0,0.00026633,2]
[374509514,1753331442847,-807.0,0.00026633,2]
[374509516,1753331442858,-3354.0,0.00026633,2]
[374509518,1753331442867,-168.0,0.0002664,2]
[374509520,1753331442876,-150.0,0.00026646,4]
[374509522,1753331442886,-150.0,0.00026655,4]
[374509524,1753331442895,-150.0,0.00026655,4]
[374509526,1753331442904,-150.0,0.00026666,4]
[374509528,1753331442914,-11843.9682078,0.0002669,3]
[374509530,1753331442923,-10000.0,0.000267,2]
[374509532,1753331442933,-700.0,0.000267,9]
[374509534,1753331442942,-11601.73,0.000267,2]
[374509536,1753331442955,-150.0,0.000267,4]
[374509538,1753331442964,-157.76366135,0.00026713,2]
[374509540,1753331442973,-150.0,0.00026727,4]
[374509542,1753331442983,-454.27342287,0.00026728,15]
[374509545,1753331442998,-528.0,0.0002673,2]
[374509547,1753331443008,-150.0,0.00026733,2]
[374509549,1753331443019,-150.0,0.00026738,2]
[374509551,1753331443029,-150.0,0.00026749,2]
[374509553,1753331443039,-150.0,0.00026756,2]
[374509555,1753331443048,-1009.0,0.00026756,7]
[374509557,1753331443057,-150.0,0.00026756,7]
[374509559,1753331443068,-500.0,0.00026756,2]
[374509562,1753331443078,-150.0,0.00026756,7]
[374509564,1753331443087,-498.0,0.00026756,7]
[374509566,1753331443097,-150.0,0.00026756,7]
[374509568,1753331443106,-150.0,0.00026756,7]
[374509570,1753331443116,-150.0,0.00026756,7]
[374509572,1753331443125,-216.742,0.00026757,14]
[374509574,1753331443135,-3235.48,0.00026757,14]
[374509576,1753331443147,-150.0,0.00026762,2]
[374509578,1753331443156,-150.0,0.00026776,2]
[374509580,1753331443165,-150.0,0.00026779,2]
[374509582,1753331443175,-11843.9682078,0.0002679,3]
[374509584,1753331443184,-150.0,0.00026797,2]
[374509586,1753331443194,-504.0,0.00026797,7]
[374509588,1753331443203,-152.0,0.000268,14]
[374509590,1753331443213,-10000.0,0.000268,2]
[374509592,1753331443224,-160.0,0.000268,10]
[374509594,1753331443233,-1000.0,0.000268,9]
[374509596,1753331443243,-150.0,0.00026804,2]
[374509598,1753331443252,-150.0,0.00026809,4]
[374509600,1753331443262,-150.0,0.00026809,4]
[374509603,1753331443271,-150.0,0.00026812,2]
[374509606,1753331443281,-150.0,0.00026815,2]
[374509608,1753331443291,-150.0,0.0002682,2]
[374509610,1753331443300,-150.0,0.00026828,4]
[374509612,1753331443310,-150.0,0.00026828,4]
[374509614,1753331443320,-1468.79354479,0.00026829,2]
[374509690,1753331444155,-153.26,0.00022599,2]
[374509692,1753331444164,-150.0,0.00024987,2]
[374509694,1753331444174,-150.0,0.00025704,2]
[374509696,1753331444183,-1376.85298357,0.00026829,2]
[374509698,1753331444195,-426.53404055,0.00026829,2]
[374509700,1753331444207,-38.99876523,0.00026829,2]
[374509702,1753331444216,-150.0,0.00026829,2]
[374509704,1753331444225,-150.0,0.00026832,2]
[374509706,1753331444235,-38.26123477,0.00026835,2]
[374509709,1753331444246,-111.73876523,0.00026835,2]
[374509711,1753331444259,-151.41878444,0.00026836,2]
[374509713,1753331444268,-150.0,0.00026836,2]
[374509715,1753331444279,-150.0,0.00026836,2]
[374509717,1753331444289,-150.0,0.00026836,2]
[374509719,1753331444299,-150.0,0.00026836,2]
[374509721,1753331444310,-150.0,0.00026836,2]
[374509723,1753331444322,-150.0,0.00026843,2]
[374509725,1753331444333,-150.0,0.00026844,2]
[374509727,1753331444343,-150.0,0.00026844,2]
[374509729,1753331444353,-150.0,0.0002685,4]
[374509731,1753331444364,-150.0,0.0002685,4]
[374509733,1753331444374,-162.82546383,0.00026858,2]
[374509735,1753331444385,-150.0,0.00026859,2]
[374509737,1753331444396,-162.82546383,0.00026859,2]
[374509739,1753331444407,-218.36779787,0.00026869,2]
[374509741,1753331444417,-699.00421564,0.00026869,2]
[374509745,1753331444455,-150.0,0.00025587,2]
[374509747,1753331444465,-3827.99718436,0.00026869,2]
[374509749,1753331444475,-157.47940434,0.0002687,2]
[374509751,1753331444485,-168.0,0.00026871,2]
[374509753,1753331444495,-150.0,0.00026872,2]
[374509755,1753331444505,-833.93066532,0.00026879,2]
[374509757,1753331444516,-772.42802836,0.0002689,3]
[374509894,1753331445991,-153.26,0.00022631,2]
[374509896,1753331446002,-150.0,0.00024578,2]
[374509898,1753331446011,-150.0,0.00024589,2]
[374509899,1753331446021,-150.0,0.00024866,2]
[374509901,1753331446032,-150.0,0.0002491,2]
[374509903,1753331446041,-150.0,0.00025311,2]
[374509905,1753331446051,-150.0,0.00025389,2]
[374509907,1753331446060,-150.0,0.000254,2]
[374509909,1753331446070,-150.0,0.00025842,2]
[374509911,1753331446079,-150.0,0.00026382,2]
[374509913,1753331446089,-150.0,0.00026489,2]
[374509915,1753331446098,-150.0,0.00026601,2]
[374509917,1753331446107,-150.0,0.00026631,2]
[374509919,1753331446117,-150.0,0.00026654,2]
[374509922,1753331446128,-150.0,0.00026668,2]
[374509923,1753331446137,-150.0,0.00026733,2]
[374509926,1753331446147,-150.0,0.00026754,2]
[374509927,1753331446156,-150.0,0.00026843,2]
[374509929,1753331446166,-150.0,0.00026851,2]
[374509932,1753331446175,-150.0,0.00026881,2]
[374509934,1753331446185,-44442.0056992,0.0002689,3]
[374509962,1753331446452,-2161.43910344,0.0002689,3]
[374509964,1753331446462,-150.0,0.00026891,4]
[374509966,1753331446472,-150.0,0.00026892,2]
[374509968,1753331446483,-150.0,0.00026896,2]
[374509970,1753331446492,-150.0,0.00026897,2]
[374509972,1753331446503,-2935.2324562,0.000269,2]
[374510167,1753331448468,-6664.7675438,0.000269,2]
[374510169,1753331448478,-2068.3582,0.000269,2]
[374510171,1753331448488,-245.14765925,0.000269,2]
[374510173,1753331448498,-1200.0,0.000269,9]
[374510175,1753331448507,-80244.228,0.000269,3]
[374510177,1753331448517,-157.76366135,0.000269,2]
[374510178,1753331448526,-200.0,0.000269,2]
[374510180,1753331448535,-150.0,0.00026903,4]
[374510182,1753331448544,-168.0,0.0002691,2]
[374510185,1753331448554,-150.0,0.00026918,4]
[374510187,1753331448563,-200.0,0.0002692,2]
[374510189,1753331448578,-150.0,0.00026923,2]
[374510191,1753331448587,-150.0,0.00026929,2]
[374510193,1753331448597,-150.0,0.00026929,2]
[374510195,1753331448607,-150.0,0.00026945,2]
[374510197,1753331448616,-165.42,0.00026949,2]
[374510199,1753331448626,-194.5293753,0.00026949,2]
[374510201,1753331448636,-106595.71387,0.00026958,3]
[374510203,1753331448645,-20215.1420177,0.00026958,3]
[374510205,1753331448654,-11864.02612794,0.00026959,2]
[374510207,1753331448664,-443016.52952224,0.00026959,2]
[374511938,1753331597613,175.254084,0.00027397,120]
[374511944,1753331739783,980.1,0.0002739,120]
[374511951,1753332147148,157.57,0.00013699,2]
[374511961,1753332339398,285.02905507,0.00016573,2]
[374511962,1753332393370,266.00628454,0.0002,120]
[374511972,1753332450632,332.71700426,0.00027,120]
[374511973,1753332567488,-174.55,0.00017926,2]
[374511974,1753332567516,-500.0,0.00018873,2]
[374511975,1753332567539,-812.55,0.00019178,2]
[374511976,1753332567561,-166.56,0.00019922,2]
[374511977,1753332567588,-169.83076957,0.00020793,2]
[374511978,1753332568026,-812.55,0.00020828,2]
[374511979,1753332568049,-500.0,0.00020893,2]
[374511980,1753332568073,-159.48465547,0.00020893,2]
[374511981,1753332568096,-157.57,0.00021918,2]
[374511982,1753332568119,-247.98404684,0.00021918,2]
[374511983,1753332568143,-575.0,0.00022,2]
[374511984,1753332568166,-600.0,0.00022394,2]
[374511985,1753332568191,-1200.0,0.00022404,2]
[374511986,1753332568213,-300.0,0.00022406,2]
[374511987,1753332568235,-10516.91,0.00022407,2]
[374511988,1753332568257,-166.16,0.00022407,2]
[374511989,1753332568279,-499.82,0.00022407,2]
[374511990,1753332568301,-6562.53,0.00022407,2]
[374511991,1753332568324,-8802.69,0.00022407,2]
[374511992,1753332568350,-272.27,0.00022407,2]
[374511993,1753332568371,-186.98,0.00022407,2]
[374511994,1753332568392,-340.56,0.00022407,2]
[374511995,1753332568416,-812.55,0.00022477,2]
[374511996,1753332568439,-337.64,0.00022609,2]
[374511997,1753332568462,-337.64,0.00022621,2]
[374511998,1753332568486,-337.64,0.00022633,2]
[374511999,1753332568511,-337.64,0.00022645,2]
[374512000,1753332568535,-337.64,0.00022657,2]
[374512001,1753332568560,-337.64,0.00022668,2]
[374512002,1753332568586,-337.64,0.0002268,2]
[374512003,1753332568610,-337.64,0.00022692,2]
[374512004,1753332568635,-337.64,0.00022704,2]
[374512005,1753332568661,-337.64,0.00022716,2]
[374512006,1753332568684,-337.64,0.00022728,2]
[374512007,1753332568706,-993.46,0.00022735,2]
[374512008,1753332568730,-337.64,0.0002274,2]
[374512009,1753332568754,-337.64,0.00022752,2]
[374512010,1753332568778,-337.64,0.00022764,2]
[374512011,1753332568800,-317.0,0.00022767,2]
[374512012,1753332568823,-337.64,0.00022775,2]
[374512013,1753332568846,-337.64,0.00022787,2]
[374512014,1753332568869,-337.64,0.00022799,2]
[374512015,1753332568892,-337.64,0.00022811,2]
[374512016,1753332568914,-1413.65,0.00022818,2]
[374512017,1753332568937,-337.64,0.00022823,2]
[374512018,1753332568962,-337.64,0.00022835,2]
[374512019,1753332568984,-150.0,0.00022838,2]
[374512020,1753332569008,-255.76,0.00022848,2]
[374512021,1753332569034,-406.24,0.00022882,2]
[374512022,1753332569056,-1867.67,0.00022914,2]
[374512023,1753332569078,-536.51,0.00022934,2]
[374512024,1753332569101,-150.72,0.00022955,2]
[374512025,1753332569124,-9216.856,0.00022962,2]
[374512026,1753332569147,-231.28369723,0.00022962,2]
[374512027,1753332569170,-477.18900901,0.00022994,2]
[374512028,1753332569192,-211.01152796,0.00022994,2]
[374512029,1753332569214,-839.91269601,0.00022995,2]
[374512030,1753332569236,-1000.0,0.00023,2]
[374512031,1753332569258,-1000.0,0.00023,2]
[374512032,1753332569283,-1444.71,0.00023,2]
[374512033,1753332569305,-5000.0,0.00023038,2]
[374512034,1753332569328,-24933.76,0.00023061,2]
[374512035,1753332569352,-250.0,0.00023147,2]
[374512036,1753332569376,-564.0,0.0002318,2]
[374512037,1753332569397,-1000.0,0.00023246,2]
[374512038,1753332569422,-20949.74,0.00023247,2]
[374512039,1753332569446,-272.27,0.00023248,2]
[374512040,1753332569472,-167.78,0.00023496,2]
[374512041,1753332569495,-8961.77926224,0.0002351,2]
[374512042,1753332569518,-2541.0,0.0002355,10]
[374512043,1753332569540,-500.0,0.00023567,2]
[374512044,1753332569563,-319.52377889,0.00023567,2]
[374512045,1753332569585,-378.2,0.00023836,2]
[374512046,1753332569611,-309.71626132,0.000239,10]
[374512047,1753332569634,-1200.0,0.0002397,2]
[374512048,1753332569656,-255.76,0.0002399,2]
[374512049,1753332569683,-309.71626128,0.00024003,10]
[374512050,1753332569706,-383.08711693,0.00024037,2]
[374512051,1753332569728,-272.27,0.00024088,2]
[374512052,1753332569756,-309.71626128,0.00024107,10]
[374512053,1753332569784,-1000.0,0.00024115,2]
[374512054,1753332569806,-1000.0,0.00024126,2]
[374512055,1753332569830,-812.55,0.00024127,2]
[374512056,1753332569856,-6055.0,0.00024137,2]
[374512057,1753332569878,-4129.0,0.00024137,2]
[374512058,1753332569901,-807.0,0.00024137,2]
[374512059,1753332569923,-3354.0,0.00024137,2]
[374512060,1753332569946,-953.0,0.00024137,2]
[374512061,1753332569968,-863.0,0.00024137,2]
[374512062,1753332569990,-21379.0,0.00024137,2]
[374512063,1753332570018,-1269.0,0.00024137,2]
[374512064,1753332570040,-2018.0,0.00024137,2]
[374512065,1753332570062,-563.0,0.00024137,2]
[374512066,1753332570082,-960.0,0.00024137,2]
[374512067,1753332570101,-890.0,0.00024137,2]
[374512068,1753332570124,-1167.0,0.00024137,2]
[374512069,1753332570146,-1402.852,0.00024137,2]
[374512070,1753332570167,-1691.838,0.00024137,2]
[374512071,1753332570190,-596.0,0.00024137,2]
[374512072,1753332570210,-502.28162665,0.00024173,2]
[374512073,1753332570233,-383.08711683,0.00024188,2]
[374512074,1753332570257,-2922.00801502,0.00024188,2]
[374512075,1753332570285,-309.71626128,0.0002421,10]
[374512076,1753332570307,-150.48871843,0.00024288,2]
[374512077,1753332570329,-150.0,0.00024288,2]
[374512078,1753332570355,-150.0,0.00024288,2]
[374512079,1753332570377,-150.0,0.00024288,2]
[374512080,1753332570401,-150.25496253,0.00024288,2]
[374512081,1753332570424,-150.0,0.00024288,2]
[374512082,1753332570446,-150.0,0.00024288,2]
[374512083,1753332570467,-150.0,0.00024288,2]
[374512084,1753332570488,-150.0,0.00024288,2]
[374512085,1753332570510,-150.0,0.00024288,2]
[374512086,1753332570534,-150.0,0.00024288,2]
[374512087,1753332570556,-150.0,0.00024288,2]
[374512088,1753332570578,-150.0,0.00024288,2]
[374512089,1753332570600,-150.0,0.00024288,2]
[374512090,1753332570622,-151.83388403,0.00024288,2]
[374512091,1753332570644,-150.0,0.00024288,2]
[374512092,1753332570666,-151.04203856,0.00024288,2]
[374512093,1753332570691,-309.71626128,0.00024314,10]
[374512094,1753332570715,-150.0,0.00024321,2]
[374512095,1753332570738,-239.84119403,0.00024331,2]
[374512096,1753332570761,-383.08711683,0.00024338,2]
[374512097,1753332570785,-150.0,0.00024365,4]
[374512098,1753332570808,-552.0,0.0002437,2]
[374512099,1753332570833,-150.0,0.0002439,2]
[374512101,1753332570861,-309.71626128,0.00024417,11]
[374512102,1753332570896,-150.0,0.0002443,4]
[374512103,1753332570927,-150.0,0.00024438,4]
[374512104,1753332570950,-150.0,0.00024442,4]
[374512105,1753332570973,-918.0,0.00024449,2]
[374512106,1753332570995,-150.0,0.00024456,4]
[374512107,1753332571020,-150.0,0.00024478,2]
[374512108,1753332571043,-383.08711683,0.00024489,2]
[374512109,1753332571068,-2922.00801498,0.00024489,2]
[374512110,1753332571094,-150.0,0.00024519,4]
[374512111,1753332571120,-309.71626128,0.00024521,11]
[374512112,1753332571142,-150.0,0.00024572,4]
[374512113,1753332571165,-150.0,0.00024588,4]
[374512114,1753332571186,-150.0,0.00024588,4]
[374512115,1753332571207,-251.12461638,0.00024594,2]
[374512116,1753332571231,-150.0,0.00024596,4]
[374512117,1753332571257,-309.71626128,0.00024624,11]
[374512118,1753332571281,-150.0,0.00024625,4]
[374512119,1753332571304,-383.08711683,0.0002464,2]
[374512120,1753332571326,-1500.0,0.00024663,2]
[374512121,1753332571353,-1000.0,0.00024663,2]
[374512122,1753332571375,-1000.0,0.00024663,2]
[374512124,1753332571400,-150.0,0.00024673,4]
[374512126,1753332571424,-150.0,0.00024673,4]
[374512128,1753332571448,-150.0,0.00024714,4]
[374512130,1753332571475,-309.71626128,0.00024728,11]
[374512131,1753332571498,-150.0,0.00024737,4]
[374512132,1753332571523,-150.0,0.0002475,4]
[374512133,1753332571545,-150.0,0.00024787,4]
[374512134,1753332571568,-383.08711683,0.0002479,2]
[374512135,1753332571592,-2922.00801498,0.00024791,2]
[374512136,1753332571614,-150.0,0.00024794,4]
[374512137,1753332571636,-504.0,0.00024797,2]
[374512138,1753332571658,-503.0,0.00024797,2]
[374512139,1753332571680,-150.0,0.00024827,4]
[374512140,1753332571702,-150.0,0.00024827,4]
[374512141,1753332571728,-309.71626128,0.00024831,12]
[374512142,1753332571750,-150.0,0.00024856,4]
[374512143,1753332571774,-153.0,0.00024857,2]
[374512144,1753332571795,-1000.0,0.00024883,2]
[374512145,1753332571816,-155.31517092,0.00024887,2]
[374512146,1753332571838,-150.0,0.00024887,4]
[374512147,1753332571859,-150.0,0.00024887,4]
[374512148,1753332571880,-150.0,0.00024905,4]
[374512149,1753332571902,-272.27,0.00024928,2]
[374512150,1753332571923,-1000.0,0.00024934,2]
[374512151,1753332571947,-309.71626128,0.00024934,12]
[374512152,1753332571966,-383.08711683,0.00024941,2]
[374512153,1753332571984,-150.0,0.00024962,4]
[374512154,1753332572003,-500.65183303,0.00024973,2]
[374512155,1753332572025,-154.26711427,0.00024973,2]
[374512156,1753332572043,-500.0,0.00024973,2]
[374512157,1753332572063,-409.5081945,0.00024973,2]
[374512158,1753332572082,-400.6987908,0.00024973,2]
[374512159,1753332572102,-502.36322253,0.00024973,2]
[374512160,1753332572123,-500.0,0.00024973,2]
[374512161,1753332572146,-500.0,0.00024973,2]
[374512162,1753332572167,-477.48666182,0.00024973,2]
[374512163,1753332572438,-500.0,0.00024973,2]
[374512164,1753332572462,-22301.1636674,0.00024973,3]
[374512165,1753332572486,-150.0,0.00024974,2]
[374512166,1753332572507,-150.99,0.0002498,2]
[374512167,1753332572531,-150.0,0.00024982,4]
[374512168,1753332572555,-1000.0,0.00024982,2]
[374512169,1753332572578,-1000.0,0.00024982,2]
[374512170,1753332572600,-152863.97,0.00024983,2]
[374512171,1753332572623,-150.0,0.00024987,4]
[374512172,1753332572647,-200.0,0.00024993,2]
[374512173,1753332572670,-150.0,0.00024998,4]
[374512174,1753332572692,-152.48,0.00025,2]
[374512175,1753332572715,-182.0,0.00025,7]
[374512176,1753332572737,-150.0,0.00025037,4]
[374512177,1753332572763,-309.71626128,0.00025038,12]
[374512178,1753332572790,-150.0,0.00025041,2]
[374512179,1753332572813,-11150.5818337,0.00025049,3]
[374512180,1753332572845,-150.0,0.00025059,4]
[374512181,1753332572868,-150.0,0.00025059,4]
[374512182,1753332572890,-181.68953105,0.00025063,2]
[374512183,1753332572912,-150.0,0.00025087,4]
[374512184,1753332572936,-383.08711683,0.00025092,2]
[374512185,1753332572960,-2922.00801498,0.00025092,2]
[374512186,1753332572983,-150.0,0.00025131,4]
[374512187,1753332573007,-255.76,0.00025133,2]
[374512188,1753332573030,-150.0,0.00025136,4]
[374512189,1753332573054,-150.0,0.0002514,4]
[374512190,1753332573082,-309.71626128,0.00025141,12]
[374512191,1753332573107,-150.0,0.00025187,4]
[374512192,1753332573130,-150.0,0.00025187,4]
[374512193,1753332573153,-150.0,0.00025187,4]
[374512194,1753332573177,-150.0,0.00025187,4]
[374512195,1753332573201,-1000.0,0.00025187,2]
[374512196,1753332573224,-314.36,0.00025205,2]
[374512197,1753332573248,-1785.70174815,0.00025211,2]
[374512198,1753332573272,-150.0,0.00025213,4]
[374512199,1753332573296,-383.08711683,0.00025242,2]
[374512200,1753332573324,-309.71626128,0.00025245,12]
[374512201,1753332573353,-150.0,0.00025279,2]
[374512202,1753332573381,-150.0,0.00025282,4]
[374512203,1753332573404,-150.0,0.00025287,4]
[374512204,1753332573435,-150.0,0.0002529,4]
[374512205,1753332573458,-150.0,0.000253,4]
[374512206,1753332573481,-150.0,0.00025337,4]
[374512207,1753332573509,-309.71626128,0.00025348,13]
[374512208,1753332573532,-150.0,0.00025367,4]
[374512209,1753332573555,-150.0,0.00025367,4]
[374512210,1753332573578,-288.0,0.0002537,3]
[374512211,1753332573601,-241.63690123,0.0002538,2]
[374512212,1753332573624,-150.0,0.00025387,4]
[374512213,1753332573648,-383.08711683,0.00025393,2]
[374512214,1753332573673,-2922.00801498,0.00025393,2]
[374512215,1753332573697,-150.0,0.0002541,2]
[374512216,1753332573720,-150.0,0.00025424,4]
[374512217,1753332573746,-150.0,0.00025424,2]
[374512218,1753332573771,-150.0,0.00025434,2]
[374512219,1753332573793,-727.13,0.00025436,2]
[374512220,1753332573817,-150.0,0.00025444,4]
[374512221,1753332573841,-150.0,0.00025444,4]
[374512222,1753332573869,-309.71626128,0.00025452,13]
[374512223,1753332573892,-150.0,0.00025468,4]